bitfinex-derivatives/quotes_BNBF0:USTF0_20251010
["timestamp","ask_amount","ask_price","bid_price","bid_amount"]
[1760088983408,0.13816185,1259.2,1258.8,0.51089122]
[1760088983704,0.13816185,1259.2,1258.2,0.79097898]
[1760088983908,0.19499923,1258.4,1258.3,0.51042872]
[1760088989213,0.19499923,1258.5,1258.3,0.51042872]
[1760088989409,0.19499923,1258.5,1258.4,0.51042872]
[1760088991012,0.19499923,1258.7,1258.4,1.10389259]
[1760088991215,0.19499923,1258.7,1258.5,0.51042872]
[1760088991415,0.19499923,1258.7,1258.6,0.51042872]
[1760088991616,0.13816185,1259.2,1258.6,0.51042872]
[1760088991916,0.13816185,1259.2,1258.7,0.51042872]
[1760088992112,0.13816185,1259.2,1257.9,0.79097898]
[1760088992412,0.19442876,1258.1,1258.0,0.50922201]
[1760088993819,0.19442876,1258.1,1258.0,1.10268588]
[1760088996024,0.19442876,1258.1,1258.0,0.50922201]
[1760089004439,0.13816185,1259.2,1258.0,0.50922201]
[1760089004638,0.13816185,1259.2,1258.1,0.50922201]
[1760089004837,0.13816185,1259.2,1258.2,0.50922201]
[1760089005040,0.13816185,1259.2,1257.7,0.79097898]
[1760089005240,0.194594,1257.9,1257.8,0.50913382]
[1760089014741,0.13816185,1259.2,1257.8,0.50913382]
[1760089014945,0.13816185,1259.2,1257.4,0.59346387]
[1760089015144,0.13816185,1259.2,1257.5,0.50936253]
[1760089015345,0.13816185,1259.2,1257.6,0.50936253]
[1760089015541,0.13816185,1259.2,1257.7,0.50936253]
[1760089015846,0.13816185,1259.2,1257.8,0.50936253]
[1760089016043,0.13816185,1259.2,1257.4,0.59346387]
[1760089016244,0.13816185,1259.2,1257.5,0.50933189]
[1760089016442,0.13816185,1259.2,1257.6,0.50933189]
[1760089016744,0.13816185,1259.2,1257.7,0.50933189]
[1760089017042,0.13816185,1259.2,1257.8,0.50933189]
[1760089017245,0.13816185,1259.2,1257.3,0.79097898]
[1760089017545,0.19436241,1257.5,1257.4,0.50928554]
[1760089021050,0.19436241,1257.5,1257.3,0.19751511]
[1760089021249,0.19436241,1257.5,1257.4,0.50924093]
[1760089022652,0.13816185,1259.2,1257.4,0.50924093]
[1760089022852,0.13816185,1259.2,1257.5,0.50924093]
[1760089023052,0.13816185,1259.2,1257.6,0.50924093]
[1760089023252,0.13816185,1259.2,1257.1,0.78893385]
[1760089023253,0.13816185,1259.2,1257.7,0.50924093]
[1760089023450,0.13816185,1259.2,1257.8,0.50924093]
[1760089023654,0.13816185,1259.2,1257.1,0.78893385]
[1760089023851,0.19426947,1257.4,1257.2,0.50915095]
[1760089024054,0.19426947,1257.4,1257.3,0.50915095]
[1760089026456,0.13816185,1259.2,1257.3,0.50915095]
[1760089026653,0.13816185,1259.2,1257.4,0.50915095]
[1760089026953,0.13816185,1259.2,1257.5,0.50915095]
[1760089027157,0.13816185,1259.2,1257.6,0.50915095]
[1760089027353,0.13816185,1259.2,1257.7,0.50915095]
[1760089027554,1.16360914,1259.9,1257.1,0.78893385]
[1760089027754,0.19420575,1257.3,1257.2,0.50613873]
[1760089034765,0.19420575,1257.4,1257.2,1.09755747]
[1760089034965,0.19420575,1257.4,1257.3,0.50613873]
[1760089036962,0.19420575,1257.4,1257.3,1.09755747]
[1760089037166,0.19420575,1257.5,1257.3,1.09755747]
[1760089037466,0.19420575,1257.5,1257.4,0.50613873]
[1760089038763,0.1383629,1257.7,1257.4,0.50613873]
[1760089038964,0.1383629,1257.7,1257.5,0.50613873]
[1760089039264,0.1383629,1257.7,1257.6,0.50613873]
[1760089042164,0.3324135,1257.7,1257.6,0.50613873]
[1760089042567,0.1383629,1257.7,1257.6,0.50613873]
[1760089045466,1.16360914,1260.0,1257.6,0.50613873]
[1760089045669,1.16360914,1260.1,1257.7,0.50613873]
[1760089045869,1.16360914,1260.1,1257.8,0.50613873]
[1760089046169,1.16360914,1260.1,1257.2,0.78893385]
[1760089046365,0.19421895,1257.5,1257.3,0.50593776]
[1760089046569,0.19421895,1257.5,1257.4,0.50593776]
[1760089051267,0.19421895,1257.5,1257.4,0.50675664]
[1760089061078,0.19421895,1257.5,1257.4,1.09866385]
[1760089066281,0.19421895,1257.5,1257.4,0.50675664]
[1760089066984,0.19421895,1257.5,1257.4,1.10068728]
[1760089068385,0.13828868,1257.7,1257.4,1.10068728]
[1760089068586,0.13828868,1257.7,1257.5,0.50675664]
[1760089068784,0.13828868,1257.7,1257.6,0.50675664]
[1760089080094,0.13828868,1257.7,1257.4,0.59393064]
[1760089080095,0.13828868,1257.7,1255.5,1.94896103]
[1760089080295,0.13828868,1257.7,1253.9,0.1383618]
[1760089081799,0.13828868,1257.7,1257.1,0.19841323]
[1760089081800,0.19547406,1257.3,1257.1,0.19841323]
[1760089082098,0.19547406,1257.3,1257.2,0.50900286]
[1760089091302,0.19547406,1257.5,1257.2,0.50900286]
[1760089091497,0.19547406,1257.5,1257.3,1.30239625]
[1760089091697,0.19547406,1257.5,1257.4,0.50900286]
[1760089092398,0.19547406,1257.5,1257.4,1.10410811]
[1760089092603,0.13828868,1257.7,1257.4,0.50900286]
[1760089092797,0.13828868,1257.7,1257.5,0.50900286]
[1760089093096,0.13828868,1257.7,1257.6,0.50900286]
[1760089099602,0.13828868,1257.7,1257.6,1.10410811]
[1760089100905,0.13828868,1257.7,1257.6,0.50900286]
[1760089101302,0.13828868,1257.7,1257.6,1.10410811]
[1760089103707,0.13828868,1257.7,1257.6,0.50900286]
[1760089110308,0.13828868,1257.7,1257.6,1.10410811]
[1760089111812,0.13828868,1257.7,1257.6,0.50900286]
[1760089112013,0.13828868,1257.7,1257.6,1.10410811]
[1760089113509,0.13828868,1257.7,1257.6,0.50900286]
[1760089116210,1.1728443,1259.7,1257.6,0.50900286]
[1760089116411,1.1728443,1260.2,1258.3,0.59510525]
[1760089116712,1.1728443,1260.2,1258.4,0.50900286]
[1760089117012,0.13822112,1259.8,1258.5,0.50900286]
[1760089117216,0.13822112,1259.8,1258.6,0.50900286]
[1760089117415,0.13822112,1259.8,1258.7,0.50900286]
[1760089117611,0.13822112,1259.8,1258.8,0.50900286]
[1760089117816,0.13822112,1259.8,1258.2,0.59510525]
[1760089118012,0.13822112,1259.8,1258.3,0.50807165]
[1760089118215,0.13822112,1259.8,1258.4,0.50807165]
[1760089118417,0.13822112,1259.8,1258.5,0.50807165]
[1760089118624,0.13822112,1259.8,1258.6,0.50807165]
[1760089118815,0.13822112,1259.8,1258.7,0.50807165]
[1760089119014,0.13822112,1259.8,1258.2,0.59510525]
[1760089119213,0.13822112,1259.8,1258.3,0.50731761]
[1760089119515,0.13822112,1259.8,1258.4,0.50731761]
[1760089119714,0.13822112,1259.8,1258.5,0.50731761]
[1760089119917,0.13822112,1259.8,1258.6,0.50731761]
[1760089120217,0.13822112,1259.8,1258.0,0.59510525]
[1760089120515,0.13822112,1259.8,1258.1,0.50711226]
[1760089120718,0.13822112,1259.8,1258.2,0.50711226]
[1760089120916,0.13822112,1259.8,1258.3,0.50711226]
[1760089121119,0.13822112,1259.8,1258.4,0.50711226]
[1760089121320,0.13822112,1259.8,1258.5,0.50711226]
[1760089121616,0.13822112,1259.8,1258.6,0.50711226]
[1760089121917,0.13822112,1259.8,1258.1,0.59510525]
[1760089122121,0.13822112,1259.8,1258.2,0.50688929]
[1760089122321,0.13822112,1259.8,1258.3,0.50688929]
[1760089122517,0.13822112,1259.8,1258.4,0.50688929]
[1760089122720,0.13822112,1259.8,1258.5,0.50688929]
[1760089122921,0.13822112,1259.8,1258.6,0.50688929]
[1760089123121,0.13822112,1259.8,1258.0,0.59510525]
[1760089123318,0.13822112,1259.8,1258.1,0.50649726]
[1760089123522,0.13822112,1259.8,1258.2,0.50649726]
[1760089123722,0.13822112,1259.8,1258.3,0.50649726]
[1760089124018,0.13822112,1259.8,1258.4,0.50649726]
[1760089124218,0.13822112,1259.8,1257.9,0.79351848]
[1760089124418,0.19481729,1258.1,1258.0,0.50631625]
[1760089124724,0.19481729,1258.2,1258.0,0.50631625]
[1760089125024,0.19481729,1258.2,1258.1,0.50631625]
[1760089125223,0.13822112,1259.8,1258.1,0.50631625]
[1760089125418,0.13822112,1259.8,1258.2,0.50631625]
[1760089125622,0.13822112,1259.8,1258.3,0.50631625]
[1760089125920,0.13822112,1259.8,1258.4,0.50631625]
[1760089126120,0.13822112,1259.8,1257.9,0.79351848]
[1760089126320,0.19461033,1258.1,1258.0,0.50612652]
[1760089127923,0.13822112,1259.8,1258.0,0.50612652]
[1760089128223,0.13822112,1259.8,1258.1,0.50612652]
[1760089128424,0.13822112,1259.8,1258.2,0.50612652]
[1760089128724,0.13822112,1259.8,1257.6,0.79351848]
[1760089128921,0.1945807,1257.9,1257.7,0.50593129]
[1760089129120,0.1945807,1257.9,1257.8,0.50593129]
[1760089135936,0.13822112,1259.8,1257.8,0.50593129]
[1760089136133,0.13822112,1259.8,1257.9,0.50593129]
[1760089136434,0.13822112,1259.8,1258.0,0.50593129]
[1760089136630,0.13822112,1259.8,1257.5,0.59510525]
[1760089136835,0.19460564,1257.7,1257.6,0.50586984]
[1760089141540,1.31106542,1259.8,1257.6,0.50586984]
[1760089141843,1.1728443,1259.4,1257.0,0.59510525]
[1760089142144,1.1728443,1259.4,1257.1,0.50617526]
[1760089142343,1.1728443,1259.4,1257.2,0.50617526]
[1760089142540,1.1728443,1259.4,1257.0,0.59510525]
[1760089142541,1.1728443,1259.4,1257.3,0.50617526]
[1760089142738,1.1728443,1259.4,1257.4,0.50617526]
[1760089142942,1.1728443,1259.4,1257.0,0.59510525]
[1760089143141,0.19455744,1257.1,1256.9,0.59510525]
[1760089143340,0.19455744,1257.5,1257.0,1.29950826]
[1760089143541,0.19455744,1257.5,1257.3,0.59184078]
[1760089143840,0.19455744,1257.5,1257.4,0.50611487]
[1760089144245,0.19455744,1257.5,1257.3,0.79025401]
[1760089146241,0.19455744,1257.5,1257.3,0.79031974]
[1760089147647,0.19455744,1257.5,1257.4,0.59190651]
[1760089148848,0.19455744,1257.5,1257.3,0.79031974]
[1760089149149,0.19455744,1257.5,1257.2,0.59190651]
[1760089149350,0.19455744,1257.4,1257.2,0.59190651]
[1760089155447,0.19455744,1257.4,1257.1,0.79031974]
[1760089155645,0.19455744,1257.3,1257.1,0.79031974]
[1760089157349,0.19455744,1257.3,1257.1,0.59190651]
[1760089157754,0.19455744,1257.2,1257.1,0.59190651]
[1760089158958,0.19455744,1257.2,1257.0,0.79031974]
[1760089161362,0.19455744,1257.4,1257.1,0.59190651]
[1760089161758,0.19455744,1257.4,1257.1,0.79031974]
[1760089162763,0.19455744,1257.4,1257.1,0.19841323]
[1760089163058,0.19455744,1257.2,1257.0,0.79031974]
[1760089165561,0.19455744,1257.2,1257.1,0.59190651]
[1760089166367,0.19455744,1257.2,1257.0,0.79031974]
[1760089170066,0.19455744,1257.2,1256.5,0.79031974]
[1760089170271,0.19455744,1256.8,1256.5,0.79031974]
[1760089170567,0.19455744,1256.8,1256.6,0.19841323]
[1760089171068,0.19455744,1256.9,1256.6,0.79031974]
[1760089175174,0.19455744,1256.9,1256.7,0.79031974]
[1760089175771,0.19455744,1257.0,1256.8,0.59190651]
[1760089176474,0.19455744,1257.0,1256.9,0.59190651]
[1760089176772,0.19455744,1257.1,1256.9,0.59190651]
[1760089176971,0.19455744,1257.1,1256.9,0.79031974]
[1760089177675,0.19455744,1257.2,1257.0,0.59190651]
[1760089177869,0.19455744,1257.2,1257.0,0.19841323]
[1760089178073,0.19455744,1257.2,1257.0,0.79031974]
[1760089179372,0.19455744,1257.2,1256.9,0.79031974]
[1760089179775,0.19455744,1257.2,1257.0,0.19841323]
[1760089179971,0.19455744,1257.5,1257.0,0.99180662]
[1760089180172,0.19455744,1257.5,1257.3,0.59078659]
[1760089180370,0.19455744,1257.5,1257.0,0.99180662]
[1760089180371,0.19455744,1257.5,1257.2,0.19841323]
[1760089180774,0.19455744,1257.5,1257.3,0.19841323]
[1760089181973,0.19455744,1257.5,1257.4,0.59078659]
[1760089182276,0.19455744,1257.5,1257.3,0.78919982]
[1760089182474,0.19455744,1257.5,1257.4,0.59078659]
[1760089182674,0.19455744,1257.6,1257.3,0.99180662]
[1760089182873,0.19455744,1257.6,1257.5,0.59114184]
[1760089186375,0.19455744,1257.6,1257.4,0.19841323]
[1760089186575,0.19455744,1257.6,1257.5,0.591828]
[1760089191486,0.19455744,1257.7,1257.4,0.19841323]
[1760089191783,0.19455744,1257.7,1257.6,0.59227684]
[1760089195486,0.19455744,1257.9,1257.6,0.19841323]
[1760089195686,0.19455744,1257.9,1257.7,0.59245348]
[1760089195986,0.91676117,1259.8,1257.7,0.79339339]
[1760089195987,0.19455744,1258.0,1257.7,0.79339339]
[1760089196187,0.19455744,1258.0,1257.9,0.59238754]
[1760089196689,0.19455744,1258.0,1257.8,0.99180662]
[1760089197587,0.19455744,1258.0,1257.9,0.59209532]
[1760089203105,0.19455744,1258.0,1257.8,0.79050855]
[1760089206006,0.19455744,1258.0,1257.8,0.19841323]
[1760089218318,0.19455744,1258.1,1257.8,0.79050855]
[1760089218515,0.19455744,1258.1,1257.9,0.59209532]
[1760089218813,0.19455744,1258.1,1257.9,0.79050855]
[1760089219914,0.19455744,1258.2,1257.9,0.79050855]
[1760089220114,0.19455744,1258.2,1258.0,0.59209532]
[1760089220318,0.19455744,1258.2,1258.0,0.79050855]
[1760089221819,0.19455744,1258.3,1258.1,0.59209532]
[1760089222016,0.19455744,1258.3,1258.1,0.79050855]
[1760089222619,0.19455744,1258.3,1258.1,0.19841323]
[1760089225317,0.19455744,1258.3,1257.7,0.19841323]
[1760089225517,0.13822112,1259.8,1257.2,0.79339339]
[1760089225518,0.19455744,1257.8,1257.4,0.79050855]
[1760089226021,0.19455744,1257.6,1257.4,0.79050855]
[1760089227420,0.19455744,1257.6,1257.2,0.79050855]
[1760089227722,0.19455744,1257.5,1257.2,0.79050855]
[1760089229022,0.19455744,1257.5,1257.3,0.59209532]
[1760089230120,0.19455744,1257.5,1257.2,0.79050855]
[1760089232728,0.19455744,1257.3,1257.1,0.79050855]
[1760089235432,0.19455744,1257.3,1257.1,0.59209532]
[1760089238234,0.19455744,1257.3,1257.2,0.59209532]
[1760089238633,0.19455744,1257.3,1257.1,0.59209532]
[1760089239237,0.19455744,1257.3,1257.0,0.79050855]
[1760089239737,0.19455744,1257.2,1257.0,0.79050855]
[1760089241834,0.19455744,1257.2,1257.0,0.59209532]
[1760089242041,0.19455744,1257.1,1256.9,0.79050855]
[1760089242536,0.77854005,1258.8,1256.8,0.59209532]
[1760089242735,0.77854005,1258.8,1256.7,0.59209532]
[1760089242936,0.19417815,1257.0,1256.7,0.59209532]
[1760089243141,0.19417815,1257.0,1256.8,0.19841323]
[1760089244138,0.19417815,1257.0,1256.8,0.79050855]
[1760089244837,0.19417815,1257.0,1256.1,0.65207354]
[1760089245040,0.77854005,1257.8,1255.4,0.45366031]
[1760089245238,0.19341522,1255.5,1255.2,0.19841323]
[1760089245541,0.19341522,1255.5,1255.1,0.19841323]
[1760089245837,0.19341522,1255.4,1255.1,0.19841323]
[1760089246241,0.19341522,1255.4,1255.2,0.19841323]
[1760089246941,0.19341522,1255.4,1255.1,0.19841323]
[1760089250144,0.19341522,1255.4,1255.2,0.19841323]
[1760089254048,0.19341522,1255.4,1255.1,0.19841323]
[1760089256252,0.19341522,1255.4,1255.2,0.19841323]
[1760089265763,0.19341522,1255.4,1254.9,0.19841323]
[1760089265963,0.19341522,1255.4,1254.0,0.19841323]
[1760089266259,0.19341522,1254.6,1254.0,0.19841323]
[1760089266462,0.19341522,1254.6,1254.4,0.19841323]
[1760089267064,0.19341522,1254.7,1254.4,0.19841323]
[1760089267459,0.19341522,1254.5,1254.3,0.19841323]
[1760089267663,0.19341522,1254.6,1254.3,0.19841323]
[1760089268361,0.19341522,1254.5,1254.3,0.19841323]
[1760089269564,0.19341522,1254.5,1254.0,0.19841323]
[1760089269762,0.19341522,1254.4,1254.0,0.19841323]
[1760089269964,0.19341522,1254.4,1254.2,0.19841323]
[1760089275271,0.19341522,1254.4,1254.1,0.19841323]
[1760089275971,0.19341522,1254.4,1254.2,0.19841323]
[1760089276367,0.19341522,1254.4,1253.8,0.19841323]
[1760089276668,0.13853586,1255.5,1252.3,0.19841323]
[1760089276867,0.18848288,1252.5,1252.2,0.19841323]
[1760089277773,0.18848288,1252.5,1252.3,0.19841323]
[1760089278370,0.18848288,1252.5,1252.2,0.19841323]
[1760089278973,0.18848288,1252.4,1252.2,0.19841323]
[1760089279669,0.18848288,1252.5,1252.2,0.19841323]
[1760089280071,0.18848288,1252.5,1252.3,0.19841323]
[1760089280272,0.18848288,1252.5,1252.2,0.19841323]
[1760089281275,0.18848288,1252.6,1252.2,0.19841323]
[1760089281570,0.18848288,1252.7,1252.4,0.19841323]
[1760089281875,0.18848288,1253.1,1250.9,0.79339339]
[1760089282074,0.18848288,1253.1,1252.8,0.19186685]
[1760089282372,0.18848288,1253.0,1252.8,0.19186685]
[1760089282670,0.18848288,1253.2,1252.9,0.19186685]
[1760089283170,0.18848288,1253.2,1253.0,0.19186685]
[1760089283574,0.18848288,1253.3,1253.1,0.19186685]
[1760089283874,0.18848288,1253.3,1253.0,0.19186685]
[1760089284274,0.18848288,1253.3,1253.1,0.19186685]
[1760089285170,0.18848288,1253.3,1253.0,0.19186685]
[1760089285877,0.18848288,1253.3,1253.1,0.19186685]
[1760089287878,0.18848288,1253.4,1253.1,0.19186685]
[1760089288374,0.18848288,1253.5,1253.2,0.19186685]
[1760089290074,0.18848288,1253.5,1253.3,0.19186685]
[1760089290278,0.18848288,1253.5,1253.2,0.19186685]
[1760089291579,0.18848288,1253.5,1253.3,0.19186685]
[1760089292379,0.18848288,1253.5,1253.2,0.19186685]
[1760089292575,0.18848288,1253.4,1253.2,0.19186685]
[1760089292875,0.18848288,1253.4,1253.0,0.19186685]
[1760089293075,0.18848288,1253.2,1253.0,0.19186685]
[1760089293976,0.18848288,1253.2,1251.1,1.1904794]
[1760089293977,0.18848288,1253.2,1252.9,0.19186685]
[1760089296183,0.18848288,1253.2,1253.0,0.19186685]
[1760089299982,0.18848288,1253.3,1253.0,0.19186685]
[1760089300181,0.18848288,1253.3,1250.5,0.19186685]
[1760089300584,0.18848288,1250.7,1250.4,0.19186685]
[1760089300983,0.18848288,1250.5,1250.2,0.19186685]
[1760089301182,0.18848288,1250.6,1250.2,0.19186685]
[1760089301385,0.18848288,1250.8,1250.2,0.19186685]
[1760089301586,0.18848288,1250.8,1250.5,0.19186685]
[1760089301989,0.18848288,1250.7,1250.5,0.19186685]
[1760089302184,0.18848288,1250.8,1250.5,0.19186685]
[1760089302688,0.18848288,1250.8,1250.6,0.19186685]
[1760089302890,0.18848288,1250.9,1250.6,0.19186685]
[1760089303285,0.18848288,1250.9,1250.7,0.19186685]
[1760089303889,0.18848288,1251.0,1250.7,0.19186685]
[1760089307394,0.18848288,1251.4,1249.9,0.57944213]
[1760089307593,0.18848288,1251.4,1251.2,0.19265701]
[1760089309489,0.18848288,1251.5,1251.2,0.19265701]
[1760089311696,0.18848288,1251.5,1251.3,0.19265701]
[1760089312701,0.18848288,1251.6,1251.4,0.19265701]
[1760089312904,0.18848288,1251.7,1251.4,0.19265701]
[1760089313304,0.18848288,1251.7,1251.5,0.19265701]
[1760089313704,0.18848288,1251.8,1251.5,0.19265701]
[1760089314405,0.18848288,1251.9,1251.6,0.19265701]
[1760089314705,0.18848288,1251.9,1251.5,0.19265701]
[1760089314906,0.18848288,1251.8,1251.5,0.19265701]
[1760089315507,0.18848288,1251.7,1251.5,0.19265701]
[1760089316405,0.18848288,1251.8,1251.5,0.19265701]
[1760089317410,0.18848288,1251.8,1251.6,0.19265701]
[1760089317912,0.18848288,1252.0,1250.5,0.57944213]
[1760089318106,0.18848288,1252.0,1251.8,0.19276823]
[1760089321813,0.18848288,1252.1,1251.8,0.19276823]
[1760089322313,0.18848288,1252.1,1251.9,0.19276823]
[1760089322514,0.18848288,1252.2,1251.9,0.19276823]
[1760089322916,0.18848288,1252.2,1252.0,0.19276823]
[1760089323214,0.18848288,1252.4,1252.0,0.19276823]
[1760089323410,0.18848288,1252.4,1252.1,0.19276823]
[1760089325414,0.18848288,1252.4,1252.2,0.19276823]
[1760089326215,0.18848288,1252.5,1252.2,0.19276823]
[1760089326913,0.18848288,1252.5,1252.3,0.19276823]
[1760089329117,0.18848288,1252.5,1252.2,0.19276823]
[1760089329918,0.13853586,1255.5,1252.0,0.19276823]
[1760089330218,0.18996318,1252.2,1252.0,0.19276823]
[1760089331815,0.18996318,1252.3,1252.0,0.19276823]
[1760089332017,0.18996318,1252.3,1252.1,0.19276823]
[1760089334619,0.18996318,1252.3,1252.0,0.19276823]
[1760089336316,0.18996318,1252.3,1252.1,0.19276823]
[1760089337317,0.18996318,1252.4,1252.1,0.19276823]
[1760089337521,0.18996318,1252.5,1252.1,0.19276823]
[1760089337719,0.18996318,1252.5,1252.2,0.19276823]
[1760089338323,0.18996318,1252.5,1252.3,0.19276823]
[1760089338619,0.13853586,1255.5,1252.3,0.19276823]
[1760089338620,0.18996318,1252.6,1252.3,0.19276823]
[1760089338823,0.18996318,1252.6,1252.4,0.19276823]
[1760089339324,0.18996318,1252.6,1251.8,0.19276823]
[1760089339519,0.18996318,1252.6,1251.7,0.19276823]
[1760089339723,0.18996318,1252.0,1251.7,0.19276823]
[1760089340024,0.18996318,1252.0,1251.8,0.19276823]
[1760089340424,0.18996318,1252.0,1251.7,0.19276823]
[1760089342626,0.18996318,1252.0,1251.8,0.19276823]
[1760089343121,0.18996318,1252.0,1251.2,0.57944213]
[1760089343122,0.18996318,1252.0,1251.6,0.19276823]
[1760089343328,0.18996318,1251.9,1251.6,0.19276823]
[1760089344627,0.18996318,1251.9,1251.7,0.19276823]
[1760089345628,0.18996318,1252.0,1251.7,0.19276823]
[1760089346323,0.18996318,1252.0,1251.8,0.19276823]
[1760089346725,0.18996318,1252.1,1251.8,0.19276823]
[1760089347330,0.18996318,1252.1,1251.9,0.19276823]
[1760089348031,0.18996318,1252.2,1251.9,0.19276823]
[1760089348326,0.18996318,1252.2,1252.0,0.19276823]
[1760089350428,0.18996318,1252.3,1252.1,0.19276823]
[1760089352330,0.18996318,1252.3,1252.0,0.19276823]
[1760089352928,0.18996318,1252.2,1251.9,0.19276823]
[1760089360036,0.18996318,1252.2,1252.0,0.19276823]
[1760089361733,0.18996318,1252.3,1252.1,0.57944213]
[1760089362037,0.18996318,1252.4,1252.2,0.57944213]
[1760089362238,0.18996318,1252.5,1252.3,0.57944213]
[1760089362537,0.18996318,1252.6,1252.3,0.57944213]
[1760089362734,0.18996318,1252.6,1252.5,0.57944213]
[1760089362936,0.18996318,1252.7,1252.5,0.57944213]
[1760089363140,0.18996318,1252.7,1252.5,0.77221036]
[1760089363342,0.18996318,1252.7,1252.5,0.57944213]
[1760089364239,0.18996318,1252.7,1252.4,0.77221036]
[1760089364437,0.18996318,1252.7,1252.5,0.19276823]
[1760089365839,0.18996318,1252.7,1252.5,0.77221036]
[1760089366138,0.77854005,1255.1,1252.5,0.77221036]
[1760089366139,0.18996318,1252.8,1252.5,0.77221036]
[1760089366343,0.18996318,1252.8,1252.6,0.57944213]
[1760089366540,0.18996318,1252.8,1252.6,0.77221036]
[1760089368444,0.18996318,1252.8,1252.4,0.19276823]
[1760089368641,0.18996318,1252.6,1252.4,0.77221036]
[1760089373547,0.18996318,1252.8,1252.4,0.19276823]
[1760089373749,0.18996318,1252.8,1252.6,0.59465787]
[1760089374149,0.18996318,1252.8,1252.7,0.59465787]
[1760089374549,0.18996318,1252.8,1252.6,0.59465787]
[1760089375251,0.18996318,1252.7,1252.5,0.7874261]
[1760089375553,0.18996318,1252.7,1252.3,0.7874261]
[1760089375753,0.18996318,1252.5,1252.3,0.7874261]
[1760089376354,0.18996318,1252.6,1252.3,0.7874261]
[1760089376850,0.18996318,1252.6,1252.4,0.19276823]
[1760089378255,0.18996318,1252.7,1252.5,0.19276823]
[1760089378752,0.18996318,1252.7,1252.5,0.7874261]
[1760089387366,0.18996318,1252.8,1252.5,0.98616162]
[1760089387562,0.18996318,1252.8,1252.7,0.59465377]
[1760089388465,0.18996318,1252.9,1252.6,0.79339339]
[1760089388671,0.18996318,1252.9,1252.7,0.78731077]
[1760089388865,0.18996318,1252.9,1252.8,0.59454254]
[1760089389165,0.18996318,1253.0,1252.8,0.59454254]
[1760089389461,0.18996318,1253.0,1252.9,0.59454254]
[1760089389665,0.18996318,1253.1,1252.8,0.98616162]
[1760089389861,0.18996318,1253.1,1252.7,0.78713245]
[1760089390065,0.18996318,1252.9,1252.7,0.78713245]
[1760089391761,0.18996318,1253.0,1252.7,0.78713245]
[1760089392366,0.18996318,1253.0,1252.7,0.19276823]
[1760089394064,0.18996318,1253.0,1252.7,0.78713245]
[1760089395465,0.18996318,1253.0,1252.8,0.59436422]
[1760089395669,0.18996318,1253.0,1252.8,0.78713245]
[1760089395965,0.18996318,1253.1,1252.9,0.59436422]
[1760089396168,0.18996318,1253.1,1252.9,0.78713245]
[1760089400472,0.18996318,1253.1,1252.9,0.19276823]
[1760089401272,0.18996318,1253.1,1252.9,0.78713245]
[1760089403174,0.18996318,1253.1,1252.9,0.19276823]
[1760089405173,0.18996318,1253.1,1252.7,0.78713245]
[1760089405476,0.18996318,1253.0,1252.7,0.78713245]
[1760089407578,0.18996318,1253.0,1252.8,0.59436422]
[1760089407773,0.18996318,1253.1,1252.9,0.59436422]
[1760089410377,0.18996318,1253.1,1252.9,0.78713245]
[1760089411580,0.18996318,1253.1,1252.8,0.19276823]
[1760089411978,0.18996318,1253.0,1252.8,0.19276823]
[1760089412181,0.18996318,1253.0,1252.7,0.78713245]
[1760089412480,0.18996318,1252.9,1252.7,0.78713245]
[1760089415182,0.18996318,1252.9,1252.7,0.98616162]
[1760089415382,0.18996318,1253.1,1252.7,0.98616162]
[1760089415584,0.18996318,1253.1,1252.9,0.59451537]
[1760089417384,0.18996318,1253.1,1253.0,0.59451537]
[1760089417984,0.18996318,1253.1,1252.9,0.59451537]
[1760089419283,0.18996318,1253.1,1253.0,0.59451537]
[1760089419986,0.18996318,1253.1,1252.9,0.59451537]
[1760089420484,0.18996318,1253.1,1253.0,0.59451537]
[1760089436200,0.18996318,1253.1,1252.8,0.59451537]
[1760089436401,0.77854005,1254.7,1252.8,0.59451537]
[1760089437398,0.77854005,1254.8,1252.8,0.59451537]
[1760089438002,0.77854005,1254.7,1252.9,0.59451537]
[1760089438702,0.77854005,1254.8,1252.9,0.59451537]
[1760089438899,0.13853586,1255.5,1252.9,0.59451537]
[1760089438900,0.77854005,1254.7,1252.9,0.59451537]
[1760089439099,0.77854005,1254.8,1253.0,0.59451537]
[1760089440806,0.77854005,1254.9,1253.0,0.59451537]
[1760089441105,0.77854005,1255.0,1252.9,0.59451537]
[1760089441304,0.19416776,1253.0,1252.9,0.59451537]
[1760089442804,0.77854005,1254.7,1252.8,0.59451537]
[1760089444409,0.77854005,1254.5,1252.7,0.59451537]
[1760089446006,0.77854005,1254.4,1252.7,0.59451537]
[1760089446311,0.77854005,1254.5,1252.7,0.59451537]
[1760089447009,0.77854005,1254.5,1252.6,0.59451537]
[1760089447613,0.77854005,1254.6,1252.6,0.59451537]
[1760089448220,0.13884483,1254.2,1252.6,0.59451537]
[1760089450320,0.13884483,1254.2,1252.7,0.59451537]
[1760089451317,0.13884483,1254.2,1252.6,0.59451537]
[1760089451521,0.193941,1252.7,1252.6,0.59451537]
[1760089451718,0.193941,1252.7,1252.5,0.19276823]
[1760089452719,0.193941,1252.7,1252.6,0.59634281]
[1760089453819,0.193941,1252.7,1252.6,0.59629315]
[1760089454222,0.193941,1252.7,1252.4,0.98616162]
[1760089454518,0.193941,1252.7,1252.4,0.19276823]
[1760089455122,0.193941,1252.7,1252.6,0.59622556]
[1760089463330,0.193941,1252.7,1252.5,0.59622556]
[1760089463633,0.193941,1252.6,1252.5,0.59622556]
[1760089466133,0.193941,1252.7,1252.5,0.59622556]
[1760089466537,0.193941,1252.7,1252.5,0.78899379]
[1760089466738,0.193941,1252.7,1252.6,0.59622556]
[1760089468735,0.193941,1252.7,1252.5,0.78899379]
[1760089468934,0.193941,1252.9,1252.3,0.79339339]
[1760089469140,0.193941,1252.9,1252.7,0.79426324]
[1760089470640,0.193941,1252.9,1252.8,0.59569743]
[1760089470844,0.193941,1252.9,1252.7,0.59569743]
[1760089471141,0.193941,1252.8,1252.7,0.59569743]
[1760089477244,0.13884483,1254.2,1252.5,0.59569743]
[1760089477546,0.19374293,1252.7,1252.6,0.59569743]
[1760089479146,0.19374293,1252.7,1252.5,0.59569743]
[1760089483250,0.19374293,1252.7,1252.6,0.59569743]
[1760089484845,0.13884483,1254.2,1252.6,0.59569743]
[1760089492156,0.13884483,1254.2,1252.7,0.59569743]
[1760089495759,0.13884483,1254.2,1252.9,0.59569743]
[1760089495960,0.13884483,1254.2,1252.8,0.59569743]
[1760089496958,0.13884483,1254.2,1252.9,0.59569743]
[1760089497663,0.13884483,1254.2,1253.0,0.59569743]
[1760089497860,0.13884483,1254.2,1253.1,0.59569743]
[1760089498060,0.13884483,1254.2,1253.2,0.59569743]
[1760089498460,0.13884483,1254.2,1253.3,0.59569743]
[1760089499164,0.13884483,1254.2,1253.2,0.59569743]
[1760089499361,0.13884483,1254.2,1253.3,0.59569743]
[1760089500465,0.13884483,1254.2,1253.0,0.9919592]
[1760089500466,0.13884483,1254.2,1253.2,0.59569743]
[1760089500660,0.13884483,1254.2,1253.3,0.59569743]
[1760089503174,0.13884483,1254.2,1253.2,0.59569743]
[1760089505072,0.13884483,1254.2,1253.1,0.59569743]
[1760089505271,0.19426059,1253.2,1253.1,0.59569743]
[1760089505874,0.19426059,1253.2,1253.0,0.19856581]